bitfinex/quotes_ETHUSD_20250923
["timestamp","ask_amount","ask_price","bid_price","bid_amount"]
[1758632805458,6.40486351,4199.2,4199.1,3.09676269]
[1758632805662,4.12253186,4199.2,4199.1,3.09676269]
[1758632805857,4.12253186,4199.2,4199.1,3.21516269]
[1758632806596,0.13353186,4199.2,4199.1,3.21516269]
[1758632806797,0.13353186,4199.2,4199.1,3.12057731]
[1758632807098,3.989,4199.3,4199.2,2.38140598]
[1758632807399,2.06,4199.8,4199.7,2.38112246]
[1758632807560,9.18236342,4199.8,4199.7,0.6913]
[1758632808067,9.18236342,4199.8,4199.7,3.07242246]
[1758632809878,9.55563456,4199.8,4199.7,3.07242246]
[1758632810287,7.49563456,4199.8,4199.7,3.07242246]
[1758632811505,0.50663456,4199.8,4199.7,3.07242246]
[1758632811675,4.49563456,4199.8,4199.7,3.09623368]
[1758632811881,4.49563456,4199.8,4199.7,3.07242246]
[1758632812605,0.50663456,4199.8,4199.7,3.07242246]
[1758632812783,4.12236342,4199.8,4199.7,3.19082246]
[1758632813511,4.12236342,4199.8,4199.7,17.69082246]
[1758632815119,0.13336342,4199.8,4199.7,17.69082246]
[1758632815417,4.12136342,4199.8,4199.7,17.69082246]
[1758632816124,3.988,4199.8,4199.7,17.69082246]
[1758632816920,3.9872,4199.8,4199.7,17.69082246]
[1758632817419,0.001,4200.0,4199.9,2.38100907]
[1758632817624,0.13441824,4200.0,4199.9,2.40481916]
[1758632817852,0.001,4200.0,4199.9,4.95611916]
[1758632818007,0.001,4200.0,4199.9,5.72430907]
[1758632818210,0.001,4200.0,4199.9,4.93230907]
[1758632820627,0.001,4200.0,4199.9,4.49000907]
[1758632821030,0.001,4200.0,4199.9,19.45611916]
[1758632821354,0.001,4200.5,4200.4,2.38072564]
[1758632821720,0.001,4200.5,4200.4,3.19042564]
[1758632821919,0.001,4200.5,4200.4,3.98242564]
[1758632822844,0.001,4200.5,4200.4,7.97142564]
[1758632823254,0.001,4200.5,4200.4,22.47142564]
[1758632827047,0.001,4200.5,4200.4,27.33142564]
[1758632827224,0.001,4200.5,4200.4,25.47142564]
[1758632830327,0.001,4200.5,4200.4,25.56684651]
[1758632831451,0.001,4200.5,4200.4,21.57784651]
[1758632831841,0.001,4200.5,4200.4,27.62284651]
[1758632832028,0.001,4200.5,4200.4,21.57784651]
[1758632832228,0.001,4200.5,4200.4,25.56484651]
[1758632833073,0.001,4200.5,4200.4,27.42484651]
[1758632836670,1e-08,4201.0,4200.9,3.17244228]
[1758632836878,1e-08,4201.0,4200.9,9.01844228]
[1758632837041,1e-08,4201.0,4200.9,9.13684228]
[1758632839176,1e-08,4201.0,4200.9,9.38654228]
[1758632839672,1e-08,4201.0,4200.9,9.69914228]
[1758632839854,1e-08,4201.0,4200.9,9.81754228]
[1758632840259,1e-08,4201.0,4200.9,24.31754228]
[1758632840460,1e-08,4201.0,4200.9,24.74644228]
[1758632840661,2.4889,4203.0,4202.2,2.37970586]
[1758632840884,0.6148,4203.0,4202.3,9.04144571]
[1758632841083,0.6148,4203.0,4202.3,9.01764922]
[1758632841283,0.6148,4203.0,4202.3,23.76734922]
[1758632841461,0.6148,4203.0,4202.3,23.51764922]
[1758632841868,0.0002,4202.4,4202.3,23.51764922]
[1758632842099,0.0002,4202.4,4202.3,21.65764923]
[1758632842584,0.0002,4202.4,4202.3,21.96895251]
[1758632842885,0.0002,4202.4,4202.3,21.65764923]
[1758632844084,0.0002,4202.4,4202.3,21.90734923]
[1758632844277,0.0002,4202.4,4202.3,22.33834923]
[1758632844657,0.0002,4202.4,4202.3,21.65764923]
[1758632846495,0.0002,4202.4,4202.3,17.67164923]
[1758632846687,0.4291,4202.4,4202.3,21.65664923]
[1758632847257,0.0002,4202.4,4202.3,21.65664923]
[1758632847904,0.0002,4202.4,4202.3,23.51664922]
[1758632848672,0.4291,4202.4,4202.3,23.51664922]
[1758632850572,0.4291,4202.4,4202.3,18.85804922]
[1758632850791,0.4291,4202.4,4202.3,22.84304922]
[1758632851185,0.5624584,4202.4,4202.3,22.84304922]
[1758632854174,0.1335584,4202.4,4202.3,22.84304922]
[1758632854594,0.5624584,4202.4,4202.3,22.84304922]
[1758632854794,0.1335584,4202.4,4202.3,22.84304922]
[1758632855291,0.1335584,4202.4,4202.3,23.09274922]
[1758632856920,0.13367746,4202.4,4202.3,23.09274922]
[1758632857322,0.13367746,4202.4,4202.3,22.84304922]
[1758632857692,0.13367746,4202.4,4202.3,20.98304923]
[1758632859222,1e-08,4202.4,4202.3,22.08635251]
[1758632859521,0.001,4202.8,4202.4,2.37959261]
[1758632859729,0.001,4202.8,4202.4,3.08408853]
[1758632860318,0.001,4202.8,4202.4,2.37959261]
[1758632861748,0.001,4202.8,4202.4,2.40338853]
[1758632862735,0.001,4202.8,4202.4,4.26338852]
[1758632863865,0.4545,4202.5,4202.4,4.2395926]
[1758632864762,0.001,4202.5,4202.4,4.2395926]
[1758632865264,0.4545,4202.5,4202.4,4.2395926]
[1758632865644,0.001,4202.5,4202.4,4.2395926]
[1758632866822,0.0002,4202.5,4202.4,4.2395926]
[1758632867218,0.0002,4202.5,4202.4,4.4876926]
[1758632867424,0.0002,4202.5,4202.4,4.9448926]
[1758632868373,0.0002,4202.5,4202.4,5.8552926]
[1758632870264,0.0002,4202.5,4202.4,5.3980926]
[1758632870985,0.0002,4202.5,4202.4,5.1499926]
[1758632871743,0.0002,4202.5,4202.4,5.3980926]
[1758632873882,0.0002,4202.5,4202.4,5.8552926]
[1758632874657,0.0002,4202.5,4202.4,5.3980926]
[1758632875973,0.0002,4202.5,4202.4,5.1499926]
[1758632880610,0.0002,4202.5,4202.4,5.8552926]
[1758632881525,0.0002,4202.5,4202.4,5.3980926]
[1758632881895,0.0002,4202.5,4202.4,5.1499926]
[1758632882105,0.58761739,4202.5,4202.4,9.1339926]
[1758632883232,0.13411739,4202.5,4202.4,4.3579926]
[1758632883435,0.58761739,4202.5,4202.4,8.3419926]
[1758632888038,0.13411739,4202.5,4202.4,8.3419926]
[1758632888443,0.001,4202.8,4202.7,2.37942275]
[1758632888594,0.001,4202.8,4202.7,6.38621697]
[1758632888796,0.02,4203.9,4203.6,2.37891331]
[1758632889043,0.02,4203.9,4203.6,6.36191331]
[1758632889249,0.02,4203.9,4203.6,7.85921331]
[1758632889601,0.02,4203.9,4203.6,7.40201331]
[1758632890128,0.02,4203.9,4203.6,7.85921331]
[1758632890832,1e-08,4203.9,4203.8,3.17080013]
[1758632891030,1e-08,4203.9,4203.8,7.15380013]
[1758632891349,1e-08,4203.9,4203.8,7.38260013]
[1758632891548,1e-08,4203.9,4203.8,21.88260013]
[1758632891899,0.00020001,4204.1,4204.0,2.37868696]
[1758632892432,0.44490001,4204.1,4204.0,6.36168696]
[1758632892612,0.44490001,4204.1,4204.0,20.86168696]
[1758632894165,0.44490001,4204.1,4204.0,22.72168695]
[1758632895463,0.44490001,4204.1,4204.0,18.73868695]
[1758632895768,0.44490001,4204.1,4204.0,22.72168695]
[1758632896366,0.00020001,4204.1,4204.0,22.72168695]
[1758632898870,0.00020001,4204.1,4204.0,22.84008695]
[1758632900378,0.00020001,4204.1,4204.0,23.53578695]
[1758632900776,0.00020001,4204.1,4204.0,23.06888695]
[1758632902700,0.00020001,4204.1,4204.0,23.63208695]
[1758632902988,0.00020001,4204.1,4204.0,22.46778696]
[1758632906390,0.00020001,4204.1,4204.0,21.77208696]
[1758632907609,0.00020001,4204.1,4204.0,22.00088696]
[1758632908127,0.00020001,4204.1,4204.0,23.86088695]
[1758632909128,0.00020001,4204.1,4204.0,23.63208695]
[1758632910191,0.00020001,4204.1,4204.0,23.63608695]
[1758632910695,0.00020001,4204.1,4204.0,23.86488695]
[1758632911936,0.4447,4205.5,4205.4,2.37789508]
[1758632912233,0.13333147,4205.5,4205.4,2.37789508]
[1758632912417,0.4447,4205.8,4205.7,2.37772546]
[1758632912628,0.57801289,4205.8,4205.7,16.87772546]
[1758632912793,0.13331289,4205.8,4205.7,16.87772546]
[1758632913396,0.4447,4206.5,4205.8,2.37766893]
[1758632913638,0.4447,4206.5,4205.8,6.58746893]
[1758632914133,0.6296,4206.5,4205.8,6.58746893]
[1758632914335,0.1849,4206.5,4205.8,6.35866893]
[1758632914550,0.4447,4206.3,4205.8,6.35866893]
[1758632915205,0.4447,4206.1,4205.8,6.35866893]
[1758632916037,0.4447,4206.2,4205.8,6.35866893]
[1758632916336,0.4447,4206.2,4205.8,20.85866893]
[1758632916748,0.0192,4205.9,4205.8,20.85866893]
[1758632918151,0.78209104,4205.9,4205.8,20.85866893]
[1758632919109,0.78209104,4205.9,4205.8,14.5]
[1758632919314,1.00433903,4205.9,4205.6,2.37776461]
[1758632919554,11.42778479,4205.7,4205.6,2.37776461]
[1758632919863,12.19067583,4205.7,4205.6,14.5]
[1758632920015,12.19067583,4205.7,4205.6,16.877782]
[1758632920457,12.05738479,4205.7,4205.6,16.877782]
[1758632920811,12.19073367,4205.7,4205.6,16.877782]
[1758632921218,12.05738479,4205.7,4205.6,16.877782]
[1758632921619,12.05738479,4205.7,4205.6,14.5]
[1758632921846,12.19073146,4205.7,4205.6,14.5]
[1758632922041,11.56113146,4205.7,4205.6,16.877782]
[1758632922356,12.02043146,4205.7,4205.6,16.877782]
[1758632922523,12.20533146,4205.7,4205.6,16.877782]
[1758632923259,11.56113146,4205.7,4205.6,16.877782]
[1758632923424,0.13334667,4205.7,4205.6,17.106282]
[1758632924051,0.13334667,4205.7,4205.6,20.857782]
[1758632924260,0.13334667,4205.7,4205.6,21.086282]
[1758632924953,0.13334667,4205.7,4205.6,23.50748199]
[1758632925120,0.0192,4205.9,4205.8,2.37766893]
[1758632925315,0.15252131,4205.9,4205.8,2.37766893]
[1758632925654,0.15252131,4205.9,4205.8,2.60616893]
[1758632926037,0.15252131,4205.9,4205.8,4.46616892]
[1758632926983,0.15252131,4205.9,4205.8,4.23766892]
[1758632927185,0.15252131,4205.9,4205.8,8.21766892]
[1758632927344,0.15252131,4205.9,4205.8,8.44616892]
[1758632927548,0.15252131,4205.9,4205.8,8.88896892]
[1758632927845,0.15252131,4205.9,4205.8,8.44616892]
[1758632928050,0.0192,4205.9,4205.8,8.44616892]
[1758632928251,0.0192,4205.9,4205.8,9.68096892]
[1758632928787,0.0192,4205.9,4205.8,24.18096892]
[1758632929285,0.0192,4205.9,4205.8,23.38896892]
[1758632929685,0.0192,4205.9,4205.8,18.96616892]
[1758632929851,0.0192,4205.9,4205.8,22.94616892]
[1758632930183,0.0192,4205.9,4205.8,23.38896892]
[1758632930350,0.0192,4205.9,4205.8,22.94616892]
[1758632931274,0.0192,4205.9,4205.8,23.38896892]
[1758632933291,0.0192,4205.9,4205.8,22.94616892]
[1758632934271,0.0192,4205.9,4205.8,18.73766892]
[1758632934472,11.44698479,4205.9,4205.8,18.73766892]
[1758632934673,12.22450865,4205.9,4205.8,22.71766892]
[1758632935264,12.03960865,4205.9,4205.8,22.71766892]
[1758632936096,12.22450865,4205.9,4205.8,4.23766892]
[1758632936272,3.0,4205.8,4204.4,1.85999999]
[1758632936594,11.42778479,4205.1,4205.0,2.37812128]
[1758632936761,12.20530865,4205.1,4205.0,2.49652128]
[1758632937162,12.20530865,4205.1,4205.0,2.37812128]
[1758632937559,12.20530865,4205.1,4204.9,2.37816341]
[1758632937762,4.77226514,4205.0,4204.9,2.37816341]
[1758632939685,4.77226514,4205.0,4204.8,2.49662708]
[1758632940020,4.77226514,4205.0,4204.5,0.1184]
[1758632940021,0.77752386,4204.9,4204.5,0.1184]
[1758632940170,3.0,4204.5,4203.9,0.004]
[1758632940363,7.35150897,4204.4,4203.9,0.004]
[1758632940561,17.50246023,4204.4,4203.9,16.88270141]
[1758632940786,17.50246023,4204.4,4203.9,16.88272907]
[1758632940992,19.94529783,4204.4,4203.9,14.504]
[1758632941194,19.94529783,4204.4,4203.9,16.88273305]
[1758632941361,19.94529783,4204.4,4204.0,2.38268185]
[1758632941583,19.94529783,4204.4,4204.0,0.004]
[1758632941798,19.94449783,4204.4,4204.2,2.37856716]
[1758632942010,17.50166023,4204.4,4204.0,0.004]
[1758632942303,17.2792164,4204.4,4204.0,0.004]
[1758632942505,17.2792164,4204.4,4204.0,2.38266936]
[1758632942702,17.5014452,4204.4,4204.0,0.004]
[1758632943287,3.0,4204.3,4204.0,0.004]
[1758632943490,12.52249254,4204.1,4204.0,0.004]
[1758632943705,18.2419588,4204.1,4204.0,0.004]
[1758632943910,18.8861588,4204.1,4204.0,0.004]
[1758632944321,16.50349254,4204.1,4204.0,2.38268696]
[1758632945127,12.52249254,4204.1,4204.0,2.38268696]
[1758632945324,16.50549254,4204.1,4204.0,2.38268696]
[1758632945619,13.50549254,4204.1,4204.0,2.38268696]
[1758632946985,0.37287859,4204.4,4204.3,2.37851723]
[1758632947240,9.52249254,4205.1,4204.3,14.5]
[1758632947389,9.52249254,4205.0,4204.4,4.6543]
[1758632947718,9.52249254,4204.7,4204.6,2.37834752]
[1758632947890,9.52249254,4204.7,4204.3,18.486]
[1758632948091,9.52249254,4204.7,4204.6,2.37834752]
[1758632948286,9.52249254,4204.7,4204.6,2.60684752]
[1758632948487,13.50849254,4205.0,4204.9,2.37817784]
[1758632950127,13.50849254,4205.0,4204.9,2.49657784]
[1758632951596,14.13289254,4205.0,4204.9,2.37817784]
[1758632952137,13.94799254,4205.0,4204.9,16.87817784]
[1758632952337,9.52249254,4205.0,4204.9,16.87817784]
[1758632952508,0.1184,4205.8,4205.7,2.37772546]
[1758632952716,13.62889254,4205.8,4205.7,2.37772546]
[1758632953450,3.0,4205.8,4205.7,2.37772546]
[1758632953605,16.51049254,4205.8,4205.7,2.49612546]
[1758632953806,16.64353041,4205.8,4205.7,2.49612546]
[1758632954062,0.13303787,4205.8,4205.7,3.16332546]
[1758632954213,3.0202,4205.9,4205.8,2.37766893]
[1758632955048,3.15322509,4205.9,4205.8,2.37766893]
[1758632956102,3.15322509,4205.9,4205.8,16.87766893]
[1758632958912,3.15322509,4205.9,4205.8,17.10976893]
[1758632958913,12.67577447,4205.9,4205.8,17.10976893]
[1758632960218,12.67577447,4205.9,4205.8,16.87766893]
[1758632962450,12.67577447,4205.9,4205.7,2.49607573]
[1758632962745,12.98219254,4205.9,4205.8,2.37766893]
[1758632963052,17.10338007,4205.9,4205.8,2.37766893]
[1758632963547,18.39280808,4205.9,4205.7,0.1184]
[1758632963739,0.26732881,4205.8,4205.3,2.377904]
[1758632963939,9.52249254,4205.4,4205.3,2.37795163]
[1758632964116,13.64368007,4205.4,4205.3,2.37795163]
[1758632964330,13.64368007,4205.4,4205.3,16.87795163]
[1758632965334,4.49394448,4205.4,4205.3,16.87795163]
[1758632965535,14.01643702,4205.4,4205.3,17.54515163]
[1758632965866,10.02843702,4205.4,4205.3,17.54515163]
[1758632966075,14.01743702,4205.4,4205.3,17.66355163]
[1758632966576,13.64468007,4205.4,4205.3,17.22845163]
[1758632966761,13.64388007,4205.4,4205.3,17.22845163]
[1758632967352,13.64388007,4205.4,4205.3,17.66355163]
[1758632968180,13.64388007,4205.4,4205.3,17.22845163]
[1758632968480,13.64388007,4205.4,4205.3,16.99635163]
[1758632968681,13.64388007,4205.4,4205.3,16.87795163]
[1758632969846,13.64388007,4205.4,4205.3,2.37795163]
[1758632970170,14.08338007,4205.4,4205.3,2.37795163]
[1758632971279,3.0,4205.3,4204.4,0.4351]
[1758632971596,15.54748323,4205.4,4205.1,2.37806473]
[1758632971597,7.22496846,4205.2,4205.1,2.37806473]
[1758632971898,3.0,4205.1,4204.9,2.37813105]
[1758632972204,3.0,4205.1,4205.0,2.37812128]
[1758632972494,16.51349254,4205.1,4205.0,2.37812128]
[1758632972638,16.73577336,4205.1,4205.0,2.37812128]
[1758632972835,17.17527336,4205.1,4205.0,2.37812128]
[1758632974380,16.73577336,4205.1,4205.0,3.04532128]
[1758632974950,16.51349254,4205.1,4205.0,3.04532128]
[1758632975342,16.73606189,4205.1,4205.0,3.04532128]
[1758632975543,16.73606189,4205.1,4205.0,2.37812128]
[1758632978452,16.73606189,4205.1,4205.0,2.61022128]
[1758632978654,0.3561918,4205.1,4205.0,3.04532128]
[1758632978859,0.13362245,4205.1,4205.0,3.04532128]
[1758632979179,0.13362245,4205.1,4205.0,17.54532128]
[1758632979584,3.988,4205.2,4205.1,2.37806473]
[1758632979788,0.13362151,4205.2,4205.1,7.05704537]
[1758632979987,0.13362151,4205.2,4205.1,7.03326473]
[1758632981367,0.13362151,4205.2,4205.1,7.15166473]
[1758632982059,9.52249254,4205.3,4205.2,2.37800818]
[1758632983874,9.52249254,4205.3,4205.2,3.09200818]
[1758632984480,9.65610879,4205.3,4205.2,3.09200818]
[1758632984790,9.65610879,4205.3,4205.2,2.61960818]
[1758632985495,13.64510879,4205.3,4205.2,17.11960818]
[1758632986998,0.13361625,4205.3,4205.2,16.87800818]
[1758632987196,0.13361625,4205.3,4205.2,21.69840818]
[1758632989578,0.22274522,4205.6,4205.5,2.37783854]
[1758632989777,0.35639235,4205.6,4205.5,2.37783854]
[1758632989964,0.35639235,4205.6,4205.5,2.49623854]
[1758632990651,0.35639235,4205.6,4205.5,16.99623854]
[1758632990806,0.13364713,4205.6,4205.5,19.57023853]
[1758632991598,0.13284713,4205.6,4205.5,19.57023853]
[1758632992109,0.13284713,4205.6,4205.5,16.99623854]
[1758632992308,3.0,4205.5,4204.4,4.23841787]
[1758632992493,4.87619706,4205.4,4205.1,2.37806087]
[1758632992695,0.86445578,4205.3,4205.2,2.37800818]
[1758632992888,10.38694832,4205.3,4205.2,2.37800818]
[1758632993207,0.67955578,4205.3,4205.2,2.37800818]
[1758632993404,10.20204832,4205.3,4205.2,2.37800818]
[1758632993609,9.74514832,4205.3,4205.2,2.37800818]
[1758632994109,9.74518312,4205.3,4205.2,2.37800818]
[1758632995579,10.11795486,4205.3,4205.2,2.37800818]
[1758632995814,10.57485486,4205.3,4205.2,2.37800818]
[1758632996315,10.57485486,4205.3,4205.2,16.87800818]
[1758632996518,10.20208312,4205.3,4205.2,16.87800818]
[1758632996733,9.74518312,4205.3,4205.2,16.87800818]
[1758632996888,9.52249254,4205.3,4205.2,16.87800818]
[1758632997214,10.20208009,4205.3,4205.2,14.5]
[1758632997417,10.38698009,4205.3,4205.2,14.5]
[1758632997580,10.38698009,4205.3,4205.2,16.87800818]
[1758632997982,10.38698743,4205.3,4205.2,16.87800818]
[1758632999999,10.38698743,4205.3,4205.2,14.5]
[1758633000183,10.38698743,4205.3,4205.2,16.87800818]
[1758633000821,10.75976001,4205.3,4205.2,16.87800818]
[1758633001400,10.75976001,4205.3,4205.2,14.5]
[1758633001823,12.32756763,4205.3,4205.1,0.004]
[1758633002054,7.87223617,4205.2,4205.1,0.004]
[1758633002354,7.97489489,4205.2,4205.1,0.004]
[1758633002516,7.33309489,4205.2,4205.1,0.004]
[1758633002712,0.22269489,4205.2,4205.1,2.62366473]
[1758633003047,0.001,4205.4,4205.3,2.37795163]
[1758633003449,0.001,4205.4,4205.3,17.59195163]
[1758633003628,0.13460226,4205.4,4205.3,17.59195163]
[1758633004646,0.13460226,4205.4,4205.3,16.87795163]
[1758633005016,0.13460226,4205.4,4205.3,17.11955163]
[1758633005947,0.13460226,4205.4,4205.3,17.59195163]
[1758633006554,0.13460226,4205.4,4205.3,17.11955163]
[1758633006954,0.13460226,4205.4,4205.3,16.87795163]
[1758633007257,11.55596351,4205.4,4205.3,16.87795163]
[1758633008724,12.01286351,4205.4,4205.3,16.87795163]
[1758633009158,11.55596351,4205.4,4205.3,16.87795163]
[1758633009653,20.85000693,4205.4,4205.1,0.1224]
[1758633009819,0.82901061,4205.3,4205.2,2.37795245]
[1758633010620,0.81326933,4205.3,4205.2,2.37795245]
[1758633011033,0.35636933,4205.3,4205.2,2.37795245]
[1758633011432,0.35636933,4205.3,4205.2,2.61095245]
[1758633011632,0.35637695,4205.3,4205.2,2.61095245]
[1758633012156,0.35637695,4205.3,4205.2,2.37795245]
[1758633013630,0.35637695,4205.3,4205.2,16.87795245]
[1758633014960,0.35637695,4205.3,4205.2,17.12655245]
[1758633015470,0.35637695,4205.3,4205.2,20.87095245]
[1758633015628,0.13360226,4205.3,4205.2,21.59325245]
[1758633015963,0.13360226,4205.3,4205.2,17.60025245]
[1758633016526,0.13280226,4205.3,4205.2,17.60025245]
[1758633016727,0.13280226,4205.3,4205.2,17.12655245]
[1758633017029,0.13280226,4205.3,4205.2,16.87795245]
[1758633017252,0.13280226,4205.3,4205.2,17.60025245]
[1758633017428,0.13280226,4205.3,4205.2,23.46125244]
[1758633017934,0.13280226,4205.3,4205.2,23.21265244]
[1758633018140,0.13280226,4205.3,4205.2,23.46125244]
[1758633019366,0.13280226,4205.3,4205.1,0.004]
[1758633019566,3.86609337,4205.2,4204.7,0.004]
[1758633019744,14.42136125,4204.8,4204.7,0.004]
[1758633020069,18.66011334,4204.8,4204.7,0.004]
[1758633020253,19.10281334,4204.8,4204.7,0.004]
[1758633020564,7.68145209,4204.8,4204.7,2.38229096]
[1758633021225,7.23875209,4204.8,4204.7,2.38229096]
[1758633023972,7.23875209,4204.8,4204.7,16.88229096]
[1758633024142,8.5902273,4204.8,4204.7,0.004]
[1758633025129,8.4053273,4204.8,4204.7,0.004]
[1758633025469,7.24175209,4204.8,4204.7,2.38229096]
[1758633025970,7.24175209,4204.8,4204.7,0.004]
[1758633026437,7.24175209,4204.8,4204.7,2.38229096]
[1758633027579,7.24175209,4204.8,4204.7,0.004]
[1758633028208,10.24758648,4204.8,4204.7,0.004]
[1758633028351,10.31218969,4204.8,4204.7,0.004]
[1758633028554,10.44566458,4204.8,4204.7,0.004]
[1758633028987,12.82389897,4204.8,4204.7,0.004]
[1758633029479,10.44566458,4204.8,4204.7,0.004]
[1758633029683,12.82386443,4204.8,4204.7,0.004]
[1758633030188,10.44563004,4204.8,4204.7,0.004]
[1758633031488,10.81848227,4204.8,4204.7,0.004]
[1758633032675,10.82948227,4204.8,4204.7,0.004]
[1758633035371,10.64458227,4204.8,4204.7,0.004]
[1758633036508,10.27173004,4204.8,4204.7,0.004]
[1758633036824,3.0,4204.7,4204.3,0.004]
[1758633037028,3.0,4204.5,4204.3,0.004]
[1758633037165,6.78534946,4204.4,4204.3,0.004]
[1758633037369,7.39720818,4204.4,4204.3,0.004]
[1758633039270,7.39718089,4204.4,4204.3,0.004]
[1758633039549,8.91901906,4204.4,4204.3,0.004]
[1758633039726,30.13039086,4204.1,4204.0,0.004]
[1758633039929,36.57751109,4204.1,4204.0,0.004]
[1758633040132,37.20511109,4204.1,4204.0,0.004]
[1758633040278,39.64794869,4204.1,4204.0,0.004]
[1758633041178,40.02087616,4204.1,4204.0,0.004]
[1758633041679,40.01946881,4204.1,4204.0,0.004]
[1758633043833,5.49708696,4204.0,4203.9,0.004]
[1758633044039,8.29543744,4204.0,4203.9,0.004]
[1758633044239,8.93373744,4204.0,4203.9,0.004]
[1758633045137,8.80035078,4204.0,4203.9,0.004]
[1758633045327,8.71150029,4204.0,4203.9,0.004]
[1758633045499,8.57822456,4204.0,4203.9,0.004]
[1758633045837,8.71151162,4204.0,4203.9,0.004]
[1758633046040,8.57822456,4204.0,4203.9,0.004]
[1758633046336,9.5902376,4204.0,4203.9,0.004]
[1758633046526,5.5612376,4204.0,4203.9,0.004]
[1758633046719,9.2044,4204.0,4203.9,0.232]
[1758633046934,0.1184,4204.0,4203.9,2.61074354]
[1758633047232,2.058,4204.2,4204.1,2.37863038]
[1758633047437,4.029,4204.2,4204.1,17.57733038]
[1758633047606,7.38462419,4204.2,4204.1,17.57733038]
[1758633048420,7.25137,4204.2,4204.1,17.57733038]
[1758633048620,7.38480291,4204.2,4204.1,17.57733038]
[1758633048816,7.38680291,4204.2,4204.1,17.57733038]
[1758633049535,7.38680291,4204.2,4204.1,17.10663038]
[1758633050545,7.38680291,4204.2,4204.1,2.60663038]
[1758633051051,0.35580291,4204.2,4204.1,17.22503038]
[1758633052076,0.35580291,4204.2,4204.1,18.96663037]
[1758633052256,0.35580291,4204.2,4204.1,19.08503037]
[1758633052551,0.37285043,4205.2,4205.1,2.37806473]
[1758633052758,7.40080054,4205.2,4205.1,2.37806473]
[1758633052946,7.38505926,4205.2,4205.1,2.60606473]
[1758633053548,0.35605926,4205.2,4205.1,2.60606473]
[1758633053747,4.38505926,4205.2,4205.1,2.60606473]
[1758633056348,4.38505926,4205.2,4205.0,0.1184]
[1758633056524,0.35605926,4205.1,4205.0,2.49650325]
[1758633056731,0.35605926,4205.1,4205.0,0.1184]
[1758633056930,0.67542811,4205.1,4205.0,2.37812128]
[1758633057761,0.37180054,4205.1,4205.0,2.37812128]
[1758633057960,7.38205926,4205.1,4205.0,2.60612128]
[1758633058564,3.35605926,4205.1,4205.0,2.60612128]
[1758633058763,7.38105926,4205.1,4205.0,2.60612128]
[1758633059131,7.38105926,4205.1,4205.0,0.228]
[1758633059332,7.38105926,4205.1,4205.0,2.37812128]
[1758633060755,7.38105926,4205.1,4205.0,2.60612128]
[1758633061473,7.38105926,4205.1,4205.0,2.37812128]
[1758633061973,7.38105926,4205.1,4205.0,2.60612128]
[1758633062680,4.38105926,4205.1,4205.0,2.60612128]
[1758633063861,4.38105926,4205.1,4205.0,2.37812128]
[1758633064034,4.82093931,4205.1,4204.9,0.1184]
[1758633064361,0.35605926,4205.0,4204.9,2.4965379]
[1758633065178,0.72886038,4205.0,4204.9,0.1184]
[1758633065332,0.72886038,4205.0,4204.9,2.49657784]
[1758633065927,0.74460166,4205.0,4204.9,0.1184]
[1758633066040,3.18743926,4205.0,4204.6,0.1184]
[1758633066240,29.97837458,4204.6,4204.4,2.37844155]
[1758633066438,4.39400054,4204.5,4204.4,2.37844155]
[1758633067351,4.39400054,4204.5,4204.0,2.37863354]
[1758633067352,4.57890054,4204.5,4204.0,2.37863569]
[1758633067552,5.79889686,4204.4,4204.1,2.37861414]
[1758633067749,4.39420054,4204.3,4203.9,0.004]
[1758633067944,0.35605926,4204.2,4203.9,0.004]
[1758633068144,4.51260054,4204.1,4203.9,0.004]
[1758633068349,0.35605926,4204.0,4203.9,0.004]
[1758633068871,0.35605926,4204.0,4203.9,2.38274354]
[1758633069237,0.35605926,4204.0,4203.9,0.004]
[1758633073575,0.35605926,4204.0,4203.9,2.38274354]
[1758633074082,0.72894818,4204.0,4203.9,2.38274354]
[1758633074444,0.74388946,4204.0,4203.9,2.38274354]
[1758633075381,0.74388946,4204.0,4203.9,0.004]
[1758633075868,0.74388946,4204.0,4203.9,2.38274354]
[1758633076180,0.74387922,4204.0,4203.9,2.38274354]
[1758633076380,0.3709903,4204.0,4203.9,2.38274354]
[1758633077074,0.3709903,4204.0,4203.9,0.2382]
[1758633077277,0.3709903,4204.0,4203.9,2.38274354]
[1758633077958,0.3709903,4204.0,4203.9,0.004]
[1758633078154,0.84081933,4204.0,4203.9,0.004]
[1758633078359,0.84081933,4204.0,4203.9,2.38274354]
[1758633079453,0.3709903,4204.0,4203.9,2.38274354]
[1758633080184,0.3709903,4204.0,4203.9,0.004]
[1758633080850,0.74387677,4204.0,4203.9,0.004]
[1758633081177,4.18567677,4204.0,4203.9,0.004]
[1758633082377,3.74387677,4204.0,4203.9,0.004]
[1758633083381,3.38782775,4204.0,4203.9,0.004]
[1758633083693,3.74374468,4204.0,4203.9,0.004]
[1758633084053,4.18554468,4204.0,4203.9,0.004]
[1758633084362,35.43795647,4204.0,4203.9,0.004]
[1758633084559,14.9704775,4204.0,4203.9,0.004]
[1758633084802,14.7855775,4204.0,4203.9,0.004]
[1758633084970,16.8435775,4204.0,4203.9,0.004]
[1758633086291,16.4017775,4204.0,4203.9,2.38274354]
[1758633086597,14.93975382,4204.0,4203.9,2.61694354]
[1758633087463,14.93975382,4204.0,4203.9,3.06894354]
[1758633087795,0.35591693,4204.0,4203.9,3.06894354]
[1758633087964,0.35591693,4204.0,4203.9,3.18734354]
[1758633090976,0.35591693,4204.0,4203.9,17.68734354]
[1758633091400,0.35511693,4204.0,4203.9,17.68734354]
[1758633093308,9.88095382,4204.0,4203.9,3.18734354]
[1758633098608,9.88095382,4204.0,4203.9,17.68734354]
[1758633099810,9.88095382,4204.0,4203.9,17.23534354]
[1758633100010,9.65960816,4204.0,4203.9,17.23534354]
[1758633101123,9.65960816,4204.0,4203.9,17.69014354]
[1758633102218,9.65960816,4204.0,4203.9,17.23534354]
[1758633102391,9.65960816,4204.0,4203.9,17.00114354]
[1758633102804,9.65960816,4204.0,4203.9,17.24594354]
[1758633103544,9.88254565,4204.0,4203.9,17.24594354]
[1758633107330,9.88254565,4204.0,4203.9,17.00114354]
[1758633107533,10.34964565,4204.0,4203.9,14.504]
[1758633107833,9.99293689,4204.0,4203.9,16.88274354]
[1758633108436,10.21589621,4204.0,4203.9,16.88274354]
[1758633108936,9.99293689,4204.0,4203.9,16.88274354]
[1758633109231,9.52583689,4204.0,4203.9,16.88274354]
[1758633109437,9.74879444,4204.0,4203.9,16.88274354]
[1758633109898,9.52583689,4204.0,4203.9,16.88274354]
[1758633110303,13.52683689,4204.0,4203.9,17.58234354]